Cogmind - Beta 11 X3 @@@ ROGUE MODE // 2021.03.19 @ 15:23:40 Player: Kyzrati Result: Escaped! Performance ------------- Evolutions (9) 4500 Regions Visited (20) 4000 Robots Destroyed (207) 1035 Value Destroyed (8891) 8891 Prototype IDs (14) 280 Alien Tech Used (0) 0 Bonus (7772) 7772 TOTAL SCORE: 26478 Bonus ------- High Alert Combat Kills 643 Follower Combat Kills 3378 Entered Garrisons 200 Used RIF Installer 500 Met R17 at Cetus 500 Win 3000 Friendly Fire -449 Cogmind --------- Core Integrity 1439/1600 Matter 237/300 Energy 252/280 System Corruption 3% Temperature Cool (15) Movement Treading (161) Location To Epsilon Eridani Parts ------- > --- POWER (2) -------- Light Quantum Reactor Light Quantum Reactor > --- PROPULSION (8) --- Armored Heavy Treads Armored Heavy Treads Centrium Heavy Treads Biometal Heavy Treads > --- UTILITY (11) ----- Advanced Heat Sink Huge Storage Unit Structural Scanner Machine Analyzer Long-range Terrain Scanner Centrium Medium Armor Plating Experimental Thermal Shield Relay Coupler [Programmer] (10) Improved System Backup Module > --- WEAPON (4) ------- Nova Cannon Enhanced Coil Gun Enhanced Coil Gun Advanced Remote Datajack > --- INVENTORY (25) --- Light Quantum Reactor Light Quantum Reactor Advanced Thermal Shield Relay Coupler [Programmer] (83) Quantum Rifle Quantum Rifle Quantum Rifle Quantum Rifle Compact HERF Cannon Compact HERF Cannon KE Penetrator Compact Linear Accelerator Micro-nuke Launcher Micro-nuke Launcher Advanced Datajack Advanced Remote Datajack Phasing Sabre Peak State ------------ > --- POWER ------------ Antimatter Reactor Light Quantum Reactor > --- PROPULSION ------- Armored Heavy Treads Centrium Heavy Treads Centrium Heavy Treads Biometal Heavy Treads > --- UTILITY ---------- Advanced Heat Sink Huge Storage Unit Structural Scanner Machine Analyzer Long-range Terrain Scanner Experimental Targeting Computer Centrium Medium Armor Plating Centrium Medium Armor Plating Experimental Thermal Shield Relay Coupler [Programmer] Mini Drone Bay > --- WEAPON ----------- Enhanced Nova Cannon Enhanced Coil Gun Compact Linear Accelerator Phasing Sabre > --- INVENTORY -------- Light Antimatter Reactor Armored Heavy Treads Advanced Heat Sink Advanced Heat Sink Quantum Capacitor Advanced Thermal Shield Relay Coupler [Programmer] Relay Coupler [Programmer] Improved System Backup Module Quantum Rifle Quantum Rifle Quantum Rifle Quantum Rifle Compact HERF Cannon Compact HERF Cannon Nova Cannon Enhanced Coil Gun Enhanced Coil Gun Micro-nuke Launcher Micro-nuke Launcher Advanced Datajack Advanced Remote Datajack Advanced Remote Datajack [Rating: 199] Favorites ----------- Power Micro Fission Core Engine Light Angular Momentum Engine Power Core Micro Fission Core Reactor Quantum Reactor Propulsion Carbon-fiber Leg Treads Centrium Heavy Treads Leg Carbon-fiber Leg Wheel Compact Wheel Flight Unit Field Propulsion Drive Utility Machine Analyzer Device Advanced Heat Sink Storage Large Storage Unit Processor Machine Analyzer Hackware Relay Coupler [Programmer] Protection Centrium Medium Armor Plating Weapon Assault Rifle Energy Gun Quantum Rifle Energy Cannon Heavy Neutron Cannon Ballistic Gun Assault Rifle Ballistic Cannon Heavy Gauss Cannon Launcher Heavy Rocket Launcher Special Weapon Improved Remote Datajack Impact Weapon Powered Hammer Slashing Weapon Katana Piercing Weapon Heavy Pick Special Melee Weapon Advanced Datajack Build | -11 -10 -10 -9 -9 -7 -6 -6 -6 -6 -6 -6 -5 -4 -4 -4 -4 -3 -3 -2 -1 ------- Run | Scr Mat Min Mat Min Zio Pro Fac Gar Fac Low Low Fac Fac Ext Cet Arc Res Tes Res Acc Slots Evolved 18 | . . . 2 . . . 6 . . . . 2 2 . . . 2 . 2 2 Power 1 | . . . . . . . . . . . . 1 . . . . . . . . Propulsion 6 | . . . 1 . . . 1 . . . . 1 . . . . 1 . . 2 Utility 9 | . . . 1 . . . 4 . . . . . 1 . . . 1 . 2 . Weapon 2 | . . . . . . . 1 . . . . . 1 . . . . . . . Parts Attached 309 | 6 4 3 25 . 3 12 33 17 4 31 . 18 35 18 7 5 21 13 25 29 Power 28 | 1 . . 3 . 1 1 3 1 1 2 . 3 3 . 1 1 . 1 1 5 Engine 12 | 1 . . 2 . 1 1 2 1 1 1 . 1 1 . . . . . . . Core 7 | . . . 1 . . . 1 . . 1 . 2 2 . . . . . . . Reactor 9 | . . . . . . . . . . . . . . . 1 1 . 1 1 5 Propulsion 56 | 2 1 1 9 . . 3 6 6 . 6 . 7 6 2 2 . 1 1 1 2 Treads 17 | . . . . . . . 4 . . 1 . . 3 2 2 . 1 1 1 2 Leg 32 | 2 1 1 9 . . 3 2 6 . 5 . . 3 . . . . . . . Wheel 1 | . . . . . . . . . . . . 1 . . . . . . . . Hover . | . . . . . . . . . . . . . . . . . . . . . Flight 6 | . . . . . . . . . . . . 6 . . . . . . . . Utility 109 | 1 3 . 3 . 1 3 8 6 3 11 . 5 14 12 3 4 7 4 9 12 Device 58 | . 2 . . . 1 2 3 2 1 7 . 1 8 7 1 2 4 3 5 9 Storage 8 | 1 1 . . . . . . . 1 1 . . 2 . . 1 . . 1 . Processor 7 | . . . . . . . 2 . . 1 . 3 1 . . . . . . . Hackware 14 | . . . . . . . 1 4 . 2 . . . 1 . 1 1 1 . 3 Protection 22 | . . . 3 . . 1 2 . 1 . . 1 3 4 2 . 2 . 3 . Artifact . | . . . . . . . . . . . . . . . . . . . . . Weapon 116 | 2 . 2 10 . 1 5 16 4 . 12 . 3 12 4 1 . 13 7 14 10 Energy Gun 7 | . . . . . . . . 1 . 1 . . . . . . 4 . 1 . Energy Cannon 9 | . . . . . . . 2 . . 1 . . 1 1 . . . . 2 2 Ballistic Gun 25 | 2 . 1 2 . 1 1 2 1 . 2 . . . 1 1 . 3 2 4 2 Ballistic Cannon 18 | . . . 5 . . 1 5 . . 1 . . 2 . . . 1 2 . 1 Launcher 16 | . . 1 3 . . 3 3 1 . 1 . 1 . . . . 1 . 2 . Special Weapon 12 | . . . . . . . . 1 . . . 1 2 1 . . 2 . 3 2 Impact Weapon 2 | . . . . . . . . . . 2 . . . . . . . . . . Slashing Weapon 13 | . . . . . . . 4 . . 2 . 1 2 . . . 1 1 1 1 Piercing Weapon 2 | . . . . . . . . . . 2 . . . . . . . . . . Special Melee Weapon 12 | . . . . . . . . . . . . . 5 1 . . 1 2 1 2 Unidentified Prototypes 10 | . . . 1 . . . . . 1 . . . 1 . 3 2 1 . . 1 Corrupted Parts 7 | . . . . . . . . . . 1 . 1 . 2 1 . 2 . . . System Corruption 34 | . . . . . . . . . . 1 . 2 . 12 15 . 4 . . . Parts Lost 66 | . . . 3 . . 3 3 8 2 26 . 4 3 1 . . 1 1 2 9 Power 7 | . . . . . . . 2 . . 2 . 1 . . . . . . . 2 Propulsion 18 | . . . . . . 1 . 3 . 10 . 1 1 . . . . . 1 1 Utility 26 | . . . 2 . . 2 1 3 2 7 . 1 2 . . . . 1 1 4 Weapon 15 | . . . 1 . . . . 2 . 7 . 1 . 1 . . 1 . . 2 Highest Loss Streak 9 | . . . 2 . . 2 1 7 1 9 . 2 1 1 . . 1 1 2 3 Average Slot Usage (%) 87 | . 95 100 89 88 99 98 95 89 90 69 26 57 86 86 85 89 84 84 85 81 Engine 3 | . 14 14 8 . 3 11 2 6 6 4 . 2 1 . . . . . . . Core 3 | . . . 2 11 7 . 2 . . 1 . 4 7 10 5 4 . . . . Reactor 1 | . . . . . . . . . . . . . . . 4 5 9 9 8 7 Treads 8 | . . . . . . . 19 4 . 3 . . 11 15 15 15 14 14 13 15 Leg 12 | . 28 28 33 33 33 32 6 21 26 8 . . 3 . . . . . . . Device 12 | . 10 14 8 . 10 12 17 11 14 13 6 5 10 12 9 9 11 13 14 16 Storage 7 | . 14 14 11 11 11 11 6 6 6 7 . . 3 5 5 5 4 4 6 4 Processor 6 | . . . . . . . 10 13 10 6 . 8 13 10 10 10 9 9 8 7 Hackware 3 | . . . . . . . . 5 8 6 13 11 5 5 5 6 9 9 6 6 Protection 5 | . . . 4 11 11 8 7 1 2 . . . 5 5 6 8 6 4 9 7 Energy Cannon 1 | . . . . . . . . . . . . . 4 5 5 5 . . 2 5 Ballistic Gun 8 | . 28 27 13 11 11 12 12 4 . . . . . 2 5 5 7 8 7 4 Ballistic Cannon 3 | . . . 8 11 11 2 2 . . . . . 4 5 5 5 1 . 4 1 Slashing Weapon 2 | . . . . . . . 2 6 6 7 6 4 4 2 . . 2 1 1 . Naked Turns 1 | . . . . . . . . . . 1 . . . . . . . . . . Heaviest Build 205 | 14 30 31 38 35 38 46 58 52 39 54 3 22 98 109 119 117 128 119 205 168 Greatest Support 295 | 20 20 20 45 45 45 48 114 114 60 60 3 27 168 168 183 183 240 240 240 295 Greatest Overweight (x) 12 | 2 1 1 1 . . 1 1 1 . 12 . 2 1 . . . . . 1 . Average Overweight (x) . | . . 1 . . . . . . . 1 . . . . . . . . . . Largest Inventory Capacity 25 | 8 15 15 15 15 15 15 15 15 15 15 5 5 20 20 20 20 20 20 25 25 Average Capacity 16 | 6 14 15 15 15 15 15 15 15 15 14 5 5 16 20 20 20 20 20 24 25 Most Carried 25 | 6 14 15 15 15 15 15 15 15 15 13 5 5 20 20 20 20 20 20 25 25 Average Carried 15 | 3 7 14 14 15 14 14 14 14 14 11 5 4 14 19 19 20 19 18 21 22 Final Capacity 25 | 8 15 15 15 15 15 15 15 15 15 5 5 5 20 20 20 20 20 20 25 25 Final Carried 25 | 6 14 14 15 15 15 15 15 15 13 5 5 5 20 20 20 20 19 20 25 17 Class Distribution -------------------- 37% | Mutant 27% | Bothacker-Mutant 20% | Scavenger-Mutant 4% | Scavenger-Tank 3% | Commander-Mutant Dominant Class ---------------- Mutant | -10/Materials Mutant | -10/Mines Mutant | -9/Materials Mutant | -9/Mines Mutant | -7/Zion Mutant | -6/Proximity Caves Mutant | -6/Factory Bothacker-Mutant | -6/Garrison Bothacker-Mutant | -6/Factory Bothacker-Mutant | -6/Lower Caves Bothacker-Mutant | -6/Lower Caves Bothacker-Mutant | -5/Factory Bothacker-Mutant | -4/Factory Bothacker-Mutant | -4/Extension Commander-Gunner | -4/Cetus Scavenger-Tank | -4/Archives Scavenger-Mutant | -3/Research Scavenger-Mutant | -3/Testing Scavenger-Mutant | -2/Research Scavenger-Mutant | -1/Access Resources | -11 -10 -10 -9 -9 -7 -6 -6 -6 -6 -6 -6 -5 -4 -4 -4 -4 -3 -3 -2 -1 ----------- Run | Scr Mat Min Mat Min Zio Pro Fac Gar Fac Low Low Fac Fac Ext Cet Arc Res Tes Res Acc Matter Collected 6704 | 235 175 170 646 35 30 288 583 570 43 356 . 342 478 370 80 182 579 114 763 665 Remotely . | . . . . . . . . . . . . . . . . . . . . . Salvage Created 9321 | . 219 72 881 46 . 346 634 627 229 669 . 556 548 447 . 245 844 . 1393 1565 Parts 363 | . 15 1 55 1 . 9 35 26 7 22 . 28 21 16 . 5 40 . 40 42 Haulers Intercepted 6 | . . . 4 . . . . . 1 . . . . . . . . . . 1 Recyclers Shooed 9 | . . . 2 . . . 1 . . . . 2 . . . . 2 . 1 1 Parts Field Recycled . | . . . . . . . . . . . . . . . . . . . . . Retrieved Matter . | . . . . . . . . . . . . . . . . . . . . . Parts Self-Destructed 27 | . . . . . . 9 . . . 18 . . . . . . . . . . Prevented 4 | . . . . . . . . . . 4 . . . . . . . . . . Kills | -11 -10 -10 -9 -9 -7 -6 -6 -6 -6 -6 -6 -5 -4 -4 -4 -4 -3 -3 -2 -1 ------- Run | Scr Mat Min Mat Min Zio Pro Fac Gar Fac Low Low Fac Fac Ext Cet Arc Res Tes Res Acc Combat Hostiles Destroyed 143 | . 4 2 20 3 . 12 13 18 . 15 . 3 7 1 . 3 11 . 19 12 Melee 11 | . . . . . . . 2 2 . 7 . . . . . . . . . . Guns 43 | . 3 1 3 2 . 1 7 1 . 2 . . . 1 . 1 6 . 6 9 Cannons 35 | . . . 7 1 . 1 1 . . 5 . . 7 . . 2 2 . 6 3 AOE 54 | . 1 1 10 . . 10 3 15 . 1 . 3 . . . . 3 . 7 . Classes Destroyed 17 | . 4 . 5 . . 2 3 2 . 1 . . . . . . . . . . Worker 23 | . 1 . 1 . . . 3 . . . . 10 5 . . . . . 1 2 Builder 11 | . 1 . 1 . . . . . . . . 1 1 1 . . 1 . 4 1 Tunneler 1 | . . . 1 . . . . . . . . . . . . . . . . . Hauler 6 | . . . 4 . . . . . 1 . . . . . . . . . . 1 Recycler 16 | . 1 . 2 . . . . . 1 . . 2 1 3 . . 2 . 1 3 Mechanic 3 | . . . . . . . 1 . . . . 1 . . . . . . . 1 Watcher 3 | . . . . . . . 1 . . . . . . . . . 1 . 1 . Swarmer 18 | . . . 3 3 . 3 4 2 . 3 . . . . . . . . . . Grunt 79 | . 4 2 12 . . 4 4 12 . 6 . 2 5 1 . . 5 . 14 8 Brawler 3 | . . . 1 . . 1 . . . . . 1 . . . . . . . . Duelist 4 | . . . . . . 2 . 1 . 1 . . . . . . . . . . Protector 1 | . . . . . . 1 . . . . . . . . . . . . . . Sentry 13 | . . . 4 . . 1 1 . . . . . 1 . . 3 1 . 1 1 Specialist 1 | . . . . . . . . 1 . . . . . . . . . . . . Hunter 12 | . . . . . . . . 2 . . . . . . . . 4 . 4 2 Programmer 7 | . . . . . . . 4 . . . . . 1 . . . 1 . . 1 Enhanced Grunt 1 | . . . . . . . . . . . . . . . . 1 . . . . Thug 1 | . . . . . . . . . . 1 . . . . . . . . . . Butcher 3 | . . . . . . . . . . 3 . . . . . . . . . . Mutant 1 | . . . . . . . . . . 1 . . . . . . . . . . Best Kill Streak 11 | . 3 2 8 2 . 5 4 10 2 4 . 8 4 1 . 1 9 . 11 6 Combat Bots Only 10 | . 3 2 6 2 . 5 4 10 . 4 . 3 3 1 . 1 6 . 8 5 Max Kills in Single Turn 5 | . 1 1 3 1 . 2 1 2 1 1 . 3 2 1 . 1 3 . 5 1 Gunslinging . | . . . . . . . . . . . . . . . . . . . . . Exploded 3 | . 1 1 3 . . 2 1 2 . 1 . 2 . . . . 2 . 3 . Melee 1 | . . . . . . . 1 1 . 1 . . . . . . . . . . Uniques/NPCs Destroyed . | . . . . . . . . . . . . . . . . . . . . . Combat | -11 -10 -10 -9 -9 -7 -6 -6 -6 -6 -6 -6 -5 -4 -4 -4 -4 -3 -3 -2 -1 -------- Run | Scr Mat Min Mat Min Zio Pro Fac Gar Fac Low Low Fac Fac Ext Cet Arc Res Tes Res Acc Damage Taken 17807 | . 286 42 644 59 . 790 917 1217 297 2695 . 436 770 783 12 614 1574 330 2170 4171 Core 1655 | . 149 11 35 . . 65 70 99 32 517 . 140 91 59 . 44 71 22 89 161 Absorbed by Shields 94 | . . . . . . . 4 . . . . . . 79 11 . . . . . Reduced by Siege Mode 616 | . . . . . . . . . . . . . . 29 . 61 109 . 255 162 Core Remaining (%) 74 | 100 . 36 . . . 75 . . . . 15 86 . . . 83 . 92 93 89 Volleys Fired 498 | . 16 8 54 5 . 22 46 40 . 35 . 11 37 27 . 19 43 14 53 68 Largest 4 | . 2 2 2 2 . 2 3 2 . 2 . 1 2 3 . 3 4 3 4 4 Hottest 333 | . 40 40 62 62 . 62 133 67 . 124 . 46 171 206 . 206 239 160 246 333 Shots Fired 855 | . 32 13 100 10 . 32 82 42 . 45 . 10 50 37 . 41 81 27 122 131 Gun 390 | . 32 11 49 5 . 11 57 17 . 17 . . . 5 . 14 39 18 61 54 Cannon 359 | . . . 44 5 . 10 20 . . 24 . . 42 20 . 27 36 8 54 69 Launcher 63 | . . 2 7 . . 11 5 20 . 4 . 6 . . . . 3 . 5 . Special 43 | . . . . . . . . 5 . . . 4 8 12 . . 3 1 2 8 Kinetic 543 | . 32 11 93 10 . 21 74 12 . 27 . . 14 13 . 28 51 19 82 56 Thermal 188 | . . . . . . . . . . 4 . . 28 12 . 13 24 7 33 67 Explosive 63 | . . 2 7 . . 11 5 20 . 4 . 6 . . . . 3 . 5 . Electromagnetic 18 | . . . . . . . 3 5 . 10 . . . . . . . . . . Robot Hit Streak 87 | . 4 8 15 3 . 12 13 8 . 7 . 3 20 33 . 34 58 9 87 26 Robot Miss Streak 5 | . 2 1 5 3 . 4 3 3 . 3 . 1 1 . . 1 1 2 2 2 Penetration Max 1 | . . . . . . . 1 . . 1 . . . 1 . 1 1 . 1 1 Secondary Targets 1 | . . . . . . . . . . . . . . . . . . . 1 . Max Gunslinging Chain 1 | . . . . . . . . . . . . . . . . . . . 1 . Shots Hit Robots 701 | . 21 9 65 4 . 21 58 27 5 41 . 23 43 68 . 38 54 17 104 103 Core Hits 423 | . 12 3 40 3 . 46 35 51 2 28 . 29 18 8 . 14 31 . 63 40 Critical Hits 21 | . . . 1 . . . . . . 1 . 1 4 1 . 3 3 . 4 3 Critical Kills 9 | . . . . . . . . . . 1 . 1 2 . . . 2 . 1 2 Critical Parts Destroyed 9 | . . . 1 . . . . . . . . . 2 . . 1 1 . 3 1 Melee Attacks 169 | . . . . . . . 21 5 7 23 . 28 18 39 . 2 3 6 4 13 Impact . | . . . . . . . . . . . . . . . . . . . . . Slashing 110 | . . . . . . . 21 5 7 18 . 28 14 8 . . 1 2 4 2 Piercing 5 | . . . . . . . . . . 5 . . . . . . . . . . Sneak Attacks 62 | . . . . . . . 4 . 3 . . 12 4 36 . 2 . . . 1 Combat Hostiles 1 | . . . . . . . . . . . . . 1 . . . . . . . Follow-up Attacks 2 | . . . . . . . . . . 2 . . . . . . . . . . Damage Inflicted 29831 | . 498 215 1920 68 . 1758 2585 2894 338 1724 . 2442 1586 1252 . 1210 2363 476 5060 3442 Guns 7090 | . 277 100 507 46 . 136 772 131 . 346 . . . 165 . 330 793 476 1442 1569 Cannons 7947 | . . . 563 22 . 163 140 . . 548 . . 1128 566 . 880 604 . 1632 1701 Explosions 10542 | . 221 115 850 . . 1459 760 2678 . 431 . 937 139 . . . 966 . 1986 . Melee 4206 | . . . . . . . 913 85 338 399 . 1505 319 517 . . . . . 130 Ramming 46 | . . . . . . . . . . . . . . 4 . . . . . 42 Kinetic 9753 | . 277 100 1070 68 . 299 856 46 . 547 . . 357 485 . 858 883 313 1988 1606 Thermal 4992 | . . . . . . . . . . 57 . . 910 246 . 352 514 163 1086 1664 Explosive 10347 | . 221 115 850 . . 1459 760 2678 . 431 . 881 . . . . 966 . 1986 . Electromagnetic 487 | . . . . . . . 56 85 . 290 . 56 . . . . . . . . Impact . | . . . . . . . . . . . . . . . . . . . . . Slashing 4145 | . . . . . . . 913 85 338 338 . 1505 319 517 . . . . . 130 Piercing 61 | . . . . . . . . . . 61 . . . . . . . . . . Highest Corruption 16 | . 4 4 3 3 3 . 1 1 1 3 3 4 . 6 16 14 4 3 . 3 Average Corruption 2 | . 3 4 2 3 3 . 1 1 1 2 3 2 . 3 5 13 1 1 . 1 Corruption Purged 24 | . . . . . . . . . . . . . . 9 4 3 5 3 . . Effects 110 | . 8 21 6 6 2 . 1 4 3 10 . 5 . 13 6 14 2 3 . 6 Message Errors 37 | . 3 5 4 5 1 . . 1 3 2 . 1 . 4 . 4 1 1 . 2 Matter Fused 18 | . 2 7 . . . . . . . 1 . 2 . 5 . 1 . . . . Heat Flow Errors 16 | . 1 4 1 1 1 . . . . 3 . . . 2 . 1 . 1 . 1 Energy Discharges 13 | . 1 2 . . . . . 1 . 2 . . . 1 2 2 . 1 . 1 Parts Rejected 1 | . 1 . . . . . . . . . . . . . . . . . . . Data Loss (minor) 16 | . . 2 1 . . . 1 2 . 2 . 1 . 1 2 2 1 . . 1 Data Loss (major) 1 | . . . . . . . . . . . . . . . . 1 . . . . Misfires 1 | . . . . . . . . . . . . . . . . 1 . . . . Alerts 1 | . . . . . . . . . . . . . . . 1 . . . . . Misdirections 3 | . . . . . . . . . . . . . . . 1 2 . . . . Weapon Failures 3 | . . 1 . . . . . . . . . 1 . . . . . . . 1 Overload Shots . | . . . . . . . . . . . . . . . . . . . . . Overflow Damage 1327 | . 44 . 2 . . 28 305 87 49 30 . 234 150 152 . 29 43 . 70 104 Projectiles 208 | . . . . . . . . . . . . . 32 16 . 29 11 . 16 104 Explosions 309 | . 44 . 2 . . 28 36 87 . 26 . . . . . . 32 . 54 . Melee 810 | . . . . . . . 269 . 49 4 . 234 118 136 . . . . . . Knockbacks 28 | . . . 4 . . 1 1 . . 4 . . 3 1 . 2 1 . 10 1 Impact 1 | . . . . . . . . . . . . . . . . . . . . 1 Kinetic 23 | . . . 3 . . 1 1 . . 4 . . 2 1 . 2 1 . 8 . Secondary 4 | . . . 1 . . . . . . . . . 1 . . . . . 2 . Self-Inflicted Damage 457 | . 94 . 3 . . 77 . 120 . 119 . 1 . . . . 43 . . . Shots 16 | . 1 . 1 . . 3 . 4 . 3 . 1 . . . . 3 . . . Rammed 5 | . . . . . . . . . . . . . . 1 . . . . . 4 Targets Rammed 5 | . . . . . . . . . . . . . . 1 . . . . . 4 Kicked . | . . . . . . . . . . . . . . . . . . . . . Crushed . | . . . . . . . . . . . . . . . . . . . . . Highest Temperature 432 | . 229 266 178 113 278 174 121 54 . 224 . . 399 425 . 432 341 287 346 208 Average Temperature 90 | . 76 109 27 24 146 61 30 22 . 62 . . 106 99 . 178 140 110 135 47 Received Heat Transfer 3037 | . 105 24 261 . . 138 118 288 27 492 . 45 99 126 . 108 123 21 396 666 Effects 4 | . . . . . . . . . . . . . . 1 . 2 1 . . . Shutdowns 2 | . . . . . . . . . . . . . . 1 . 1 . . . . Energy Bleed 2 | . . . . . . . . . . . . . . . . 1 1 . . . Siege Activations 19 | . . . . . . . . . . . . . 2 2 . 2 3 1 6 3 Total Turns 464 | . . . . . . . . . . . . . 20 38 . 65 69 47 142 83 Longest Duration 55 | . . . . . . . . . . . . . 19 33 . 55 40 47 34 47 Robots Corrupted . | . . . . . . . . . . . . . . . . . . . . . Combat Hostiles . | . . . . . . . . . . . . . . . . . . . . . Parts Fried 2 | . . . . . . . . . . 2 . . . . . . . . . . Impact Corruptions 1 | . . . . . . . . . . . . . . . . . . . 1 . Robots Melted . | . . . . . . . . . . . . . . . . . . . . . Combat Hostiles . | . . . . . . . . . . . . . . . . . . . . . Parts Melted . | . . . . . . . . . . . . . . . . . . . . . Heat Transferred 4320 | . . . . . . . . . . 111 . . 575 150 . 250 459 185 1073 1517 Parts Sabotaged . | . . . . . . . . . . . . . . . . . . . . . Parts Stolen . | . . . . . . . . . . . . . . . . . . . . . Parts Stripped . | . . . . . . . . . . . . . . . . . . . . . Power Chain Reactions 1 | . . . . . . . . . . . . . 1 . . . . . . . Missiles Intercepted . | . . . . . . . . . . . . . . . . . . . . . Alert | -11 -10 -10 -9 -9 -7 -6 -6 -6 -6 -6 -6 -5 -4 -4 -4 -4 -3 -3 -2 -1 ------- Run | Scr Mat Min Mat Min Zio Pro Fac Gar Fac Low Low Fac Fac Ext Cet Arc Res Tes Res Acc Peak Influence 909 | . 105 90 454 325 . . 299 909 537 . . 314 284 698 827 443 483 247 622 649 Initial 476 | . . 40 . 177 . . 72 157 476 . . 25 60 138 390 309 109 231 5 328 Average 251 | . 27 35 149 237 . . 169 638 505 . . 147 122 268 670 400 380 115 304 380 Maximum Alert Level 3 | . . . 2 1 . . 1 3 2 . . 1 1 2 3 2 2 1 2 2 Low Security (%) 47 | 100 100 100 69 29 . . 47 7 . . . 59 77 52 . . 10 60 30 1 Level 1 29 | . . . 26 70 . . 52 3 . . . 40 22 29 7 30 31 39 22 69 Level 2 18 | . . . 4 . . . . 44 100 . . . . 18 37 69 57 . 46 29 Level 3 5 | . . . . . . . . 45 . . . . . . 54 . . . . . Level 4 . | . . . . . . . . . . . . . . . . . . . . . Level 5 . | . . . . . . . . . . . . . . . . . . . . . High Security . | . . . . . . . . . . . . . . . . . . . . . Max Security . | . . . . . . . . . . . . . . . . . . . . . Squads Dispatched 45 | . 1 . 2 . . 1 7 . 1 . . 3 4 1 . . 6 4 6 9 Investigation 7 | . . . 1 . . . 1 . . . . . 2 . . . 1 . 1 1 Extermination 12 | . . . . . . . 4 . . . . . 2 . . . 1 1 1 3 Reinforcement 20 | . 1 . 1 . . . 2 . 1 . . 3 . 1 . . 2 3 4 2 Assault 1 | . . . . . . 1 . . . . . . . . . . . . . . Garrison 5 | . . . . . . . . . . . . . . . . . 2 . . 3 Intercept . | . . . . . . . . . . . . . . . . . . . . . Construction Impeded 8 | . . . 1 . . . 1 . . . . 2 . . . . 1 . 3 . Haulers Reinforced 2 | . . . . . . . . . 1 . . . . . . . . . . 1 Stealth | -11 -10 -10 -9 -9 -7 -6 -6 -6 -6 -6 -6 -5 -4 -4 -4 -4 -3 -3 -2 -1 --------- Run | Scr Mat Min Mat Min Zio Pro Fac Gar Fac Low Low Fac Fac Ext Cet Arc Res Tes Res Acc Distress Signals 20 | . . . 2 . . . . . . . . 1 . 3 2 . 2 . 2 8 Communications Jammed . | . . . . . . . . . . . . . . . . . . . . . Distress Signals . | . . . . . . . . . . . . . . . . . . . . . Times Spotted 313 | . 6 3 26 6 . 18 22 25 5 16 . 17 18 28 12 9 24 7 31 40 Peak Tracking Total 8 | . 3 2 6 3 . 7 5 7 3 5 . 6 3 7 5 2 8 3 7 8 Tactical Retreats 16 | . . . . . . 1 1 1 . . . 3 . 1 . . 1 . 2 6 Traps | -11 -10 -10 -9 -9 -7 -6 -6 -6 -6 -6 -6 -5 -4 -4 -4 -4 -3 -3 -2 -1 ------- Run | Scr Mat Min Mat Min Zio Pro Fac Gar Fac Low Low Fac Fac Ext Cet Arc Res Tes Res Acc Traps Triggered 10 | . 2 . 1 . . . . 3 2 . . 2 . . . . . . . . Indirectly . | . . . . . . . . . . . . . . . . . . . . . Trap Hack Attempts 4 | . . . . . . . . . . . . . . 4 . . . . . . Triggered . | . . . . . . . . . . . . . . . . . . . . . Disarmed . | . . . . . . . . . . . . . . . . . . . . . Reprogrammed 4 | . 4 . . . . . . . . . . . . . . . . . . . Reused . | . . . . . . . . . . . . . . . . . . . . . Traps Extracted . | . . . . . . . . . . . . . . . . . . . . . Installed . | . . . . . . . . . . . . . . . . . . . . . Triggered 6 | . . . . . . . . . . 3 . 1 . 1 . . . 1 . . Machines | -11 -10 -10 -9 -9 -7 -6 -6 -6 -6 -6 -6 -5 -4 -4 -4 -4 -3 -3 -2 -1 ---------- Run | Scr Mat Min Mat Min Zio Pro Fac Gar Fac Low Low Fac Fac Ext Cet Arc Res Tes Res Acc Machines Disabled 24 | . 1 . 1 . . . 4 2 . . . 2 6 1 2 2 . 1 1 1 Max in Single Turn 5 | . 1 . 1 . . . 2 1 . . . 1 5 1 . 1 . . 1 1 Garrison Access 2 | . . . . . . . . . . . . . 1 . . . . . . 1 Garrison Relay 2 | . . . . . . . . 2 . . . . . . . . . . . . Machines Sabotaged . | . . . . . . . . . . . . . . . . . . . . . Garrisons Compromised . | . . . . . . . . . . . . . . . . . . . . . Overloaded Fab Kills 2 | . . . . . . . . . . . . . 2 . . . . . . . Fab Network Shutdowns . | . . . . . . . . . . . . . . . . . . . . . Hacking | -11 -10 -10 -9 -9 -7 -6 -6 -6 -6 -6 -6 -5 -4 -4 -4 -4 -3 -3 -2 -1 --------- Run | Scr Mat Min Mat Min Zio Pro Fac Gar Fac Low Low Fac Fac Ext Cet Arc Res Tes Res Acc Machines Accessed 45 | . 2 . 6 2 1 . 6 . 1 . 1 3 6 6 . . 1 6 2 2 Terminals 36 | . 2 . 5 2 . . 4 . 1 . . 2 4 6 . . 1 6 2 1 Fabricators 2 | . . . . . . . 1 . . . . . 1 . . . . . . . Repair Stations 1 | . . . . . . . . . . . . 1 . . . . . . . . Recycling Units 1 | . . . 1 . . . . . . . . . . . . . . . . . Scanalyzers . | . . . . . . . . . . . . . . . . . . . . . Garrison Access 3 | . . . . . . . 1 . . . . . 1 . . . . . . 1 Total Hacks 95 | . 5 . 14 3 3 . 11 . 1 . 1 6 17 15 . . 2 11 3 3 Successful 40 | . 3 . 7 . 3 . 4 . . . 1 2 7 7 . . 1 2 . 3 Failed 55 | . 2 . 7 3 . . 7 . 1 . . 4 10 8 . . 1 9 3 . Catastrophic 16 | . . . 1 1 . . 1 . 1 . . 1 4 2 . . . 4 1 . Database Lockouts . | . . . . . . . . . . . . . . . . . . . . . Manual 55 | . . . 9 3 . . 9 . . . . 6 15 5 1 . . 4 3 . Terminals 79 | . 5 . 12 3 . . 8 . 1 . . 4 14 15 . . 2 11 3 1 Fabricators 3 | . . . . . . . 2 . . . . . 1 . . . . . . . Repair Stations 2 | . . . . . . . . . . . . 2 . . . . . . . . Recycling Units 2 | . . . 2 . . . . . . . . . . . . . . . . . Scanalyzers . | . . . . . . . . . . . . . . . . . . . . . Garrison Access 5 | . . . . . . . 1 . . . . . 2 . . . . . . 2 Terminal Hacks 23 | . 3 . 5 . 3 . . . . . 1 . 2 5 . . 1 2 . 1 Part Schematic 4 | . . . . . 3 . . . . . . . 1 . . . . . . . Prototype ID Bank 2 | . 1 . . . . . . . . . . . . 1 . . . . . . Open Door 6 | . . . . . . . . . . . 1 . . 3 . . . 1 . 1 Branch Access Points 2 | . . . . . . . . . . . . . 1 . . . 1 . . . Unreport Threat 2 | . . . 1 . . . . . . . . . . . . . . 1 . . Locate Traps 4 | . 1 . 2 . . . . . . . . . . 1 . . . . . . Reprogram Traps 1 | . 1 . . . . . . . . . . . . . . . . . . . Zone Layout 2 | . . . 2 . . . . . . . . . . . . . . . . . Fabricator Hacks 1 | . . . . . . . 1 . . . . . . . . . . . . . Build 1 | . . . . . . . 1 . . . . . . . . . . . . . Repair Station Hacks . | . . . . . . . . . . . . . . . . . . . . . Recycling Unit Hacks . | . . . . . . . . . . . . . . . . . . . . . Scanalyzer . | . . . . . . . . . . . . . . . . . . . . . Garrison Access Hacks 5 | . . . . . . . 1 . . . . . 2 . . . . . . 2 Unlock Access 1 | . . . . . . . 1 . . . . . . . . . . . . . Seal Access 2 | . . . . . . . . . . . . . 1 . . . . . . 1 Coupler Status 2 | . . . . . . . . . . . . . 1 . . . . . . 1 Unauthorized Hacks 11 | . . . 2 . . . 2 . . . . 2 3 2 . . . . . . Terminals 8 | . . . 2 . . . 1 . . . . 1 2 2 . . . . . . Track 3 | . . . . . . . 1 . . . . 1 . 1 . . . . . . Assimilate 1 | . . . . . . . . . . . . . 1 . . . . . . . Botnet 4 | . . . 2 . . . . . . . . . 1 1 . . . . . . Fabricators 2 | . . . . . . . 1 . . . . . 1 . . . . . . . Prioritize 1 | . . . . . . . 1 . . . . . . . . . . . . . Overload 1 | . . . . . . . . . . . . . 1 . . . . . . . Repair Stations 1 | . . . . . . . . . . . . 1 . . . . . . . . Mechanics 1 | . . . . . . . . . . . . 1 . . . . . . . . Recycling Units . | . . . . . . . . . . . . . . . . . . . . . Scanalyzers . | . . . . . . . . . . . . . . . . . . . . . Garrison Access . | . . . . . . . . . . . . . . . . . . . . . Data Cores Recovered . | . . . . . . . . . . . . . . . . . . . . . Used . | . . . . . . . . . . . . . . . . . . . . . Hacking Detections 35 | . . . 6 1 . . 6 . 1 . . 3 4 4 . . 1 6 2 1 Full Trace Events 4 | . . . 1 . . . 1 . . . . . 1 . . . . . 1 . Feedback Events 1 | . . . 1 . . . . . . . . . . . . . . . . . Corruption 1 | . . . 1 . . . . . . . . . . . . . . . . . Feedback Blocked . | . . . . . . . . . . . . . . . . . . . . . Robot Schematics Acquired . | . . . . . . . . . . . . . . . . . . . . . Robots Built . | . . . . . . . . . . . . . . . . . . . . . Matter . | . . . . . . . . . . . . . . . . . . . . . Time . | . . . . . . . . . . . . . . . . . . . . . Total Robot Build Rating . | . . . . . . . . . . . . . . . . . . . . . Part Schematics Acquired 4 | . . . . . 3 . . . . . . . 1 . . . . . . . Parts Built 1 | . . . . . . . 1 . . . . . . . . . . . . . Matter 256 | . . . . . . . 256 . . . . . . . . . . . . . Time 64 | . . . . . . . 64 . . . . . . . . . . . . . Total Part Build Rating 8 | . . . . . . . 8 . . . . . . . . . . . . . Parts Repaired . | . . . . . . . . . . . . . . . . . . . . . Time . | . . . . . . . . . . . . . . . . . . . . . Parts Recycled . | . . . . . . . . . . . . . . . . . . . . . Recycled Matter . | . . . . . . . . . . . . . . . . . . . . . Retrieved Matter . | . . . . . . . . . . . . . . . . . . . . . Retrieved Components . | . . . . . . . . . . . . . . . . . . . . . Parts Scanalyzed . | . . . . . . . . . . . . . . . . . . . . . Part Schematics Acquired . | . . . . . . . . . . . . . . . . . . . . . Parts Damaged . | . . . . . . . . . . . . . . . . . . . . . Bothacking | -11 -10 -10 -9 -9 -7 -6 -6 -6 -6 -6 -6 -5 -4 -4 -4 -4 -3 -3 -2 -1 ------------ Run | Scr Mat Min Mat Min Zio Pro Fac Gar Fac Low Low Fac Fac Ext Cet Arc Res Tes Res Acc Used RIF Installer 1 | . . . . . . . . 1 . . . . . . . . . . . . Robots Hacked 35 | . . . . . . . . 4 . . . 1 3 3 . 1 5 4 2 12 Non-combat 5 | . . . . . . . . . . . . . . . . 1 . . 2 2 Combat 30 | . . . . . . . . 4 . . . 1 3 3 . . 5 4 . 10 Robot Hacks Applied 36 | . . . . . . . . 4 . . . 1 3 3 . 1 5 4 2 13 purge_threat 2 | . . . . . . . . . . . . . . . . 1 . . . 1 locate_traps 1 | . . . . . . . . . . . . . . . . . . . . 1 block_reporting 1 | . . . . . . . . . . . . . . . . . . . 1 . map_route 1 | . . . . . . . . . . . . . . . . . . . . 1 overload_power 3 | . . . . . . . . 1 . . . . . . . . . . . 2 amplify_resonance 1 | . . . . . . . . . . . . . . . . . 1 . . . wipe_record 1 | . . . . . . . . . . . . . . 1 . . . . . . reboot_system 1 | . . . . . . . . 1 . . . . . . . . . . . . overwrite_iff 2 | . . . . . . . . . . . . . . 1 . . . . . 1 streamctrl_high 1 | . . . . . . . . . . . . . . 1 . . . . . . formatsys_low 1 | . . . . . . . . . . . . . . . . . . . 1 . formatsys_high 21 | . . . . . . . . 2 . . . 1 3 . . . 4 4 . 7 Relay Couplers Released 13 | . . . . . . . . 8 . . . . 3 . . . . . . 2 Machine Destruction 10 | . . . . . . . . 8 . . . . . . . . . . . 2 Programmers 3 | . . . . . . . . . . . . . 3 . . . . . . . Attached 13 | . . . . . . . . 4 . 2 . . . 1 . 1 1 1 . 3 Robots Rewired 29 | . . . . . . 2 . . . . . . 4 23 . . . . . . Allies Hacked 4 | . . . . . . . . . . . . . 3 . . . 1 . . . Hacks Repelled 1 | . . . . . . . . . . . . . . . . . . 1 . . Allies | -11 -10 -10 -9 -9 -7 -6 -6 -6 -6 -6 -6 -5 -4 -4 -4 -4 -3 -3 -2 -1 -------- Run | Scr Mat Min Mat Min Zio Pro Fac Gar Fac Low Low Fac Fac Ext Cet Arc Res Tes Res Acc Total Allies 71 | . . 3 . 2 . 2 . 2 . . . 1 8 33 1 . 5 5 1 8 Largest Group 26 | . . 3 3 2 1 2 1 2 1 . . 1 5 26 18 5 3 3 3 2 Highest-Rated Group 1257 | . . 40 40 42 31 61 32 61 32 . . 54 167 1257 845 310 224 245 194 168 Highest-Rated Ally 156 | . . 16 16 31 31 32 32 32 32 . . 54 54 156 150 134 84 84 84 84 Total Orders 23 | . . . . . . . . . . . . 2 3 . . 2 . . 4 12 STAY 7 | . . . . . . . . . . . . 1 2 . . 1 . . 2 1 FOLLOW 6 | . . . . . . . . . . . . 1 1 . . 1 . . 1 2 EXPLORE 5 | . . . . . . . . . . . . . . . . . . . 1 4 RETURN 5 | . . . . . . . . . . . . . . . . . . . . 5 Ally Attacks 455 | . . 8 20 4 . 11 5 20 3 . . 2 22 165 95 6 30 31 5 28 Total Damage 13784 | . . 129 264 85 . 389 169 460 101 . . 21 828 5230 2716 138 902 727 167 1458 Kills 90 | . . 2 4 3 . 3 3 2 1 . . . 7 31 17 1 4 4 1 7 Allies Corrupted 3 | . . . . . . . . . . . . . 2 . . . . . . 1 Allies Melted . | . . . . . . . . . . . . . . . . . . . . . Intel | -11 -10 -10 -9 -9 -7 -6 -6 -6 -6 -6 -6 -5 -4 -4 -4 -4 -3 -3 -2 -1 ------- Run | Scr Mat Min Mat Min Zio Pro Fac Gar Fac Low Low Fac Fac Ext Cet Arc Res Tes Res Acc Robot Analysis Total . | . . . . . . . . . . . . . . . . . . . . . Derelict Logs Recovered 2 | . . 1 . . 1 . . . . . . . . . . . . . . . Drone Launches 7 | . . . . . . . . . . . . . . . . . . . 1 6 Drone Recoveries 5 | . . . . . . . . . . . . . . . . . . . . 5 Exploration | -11 -10 -10 -9 -9 -7 -6 -6 -6 -6 -6 -6 -5 -4 -4 -4 -4 -3 -3 -2 -1 ------------- Run | Scr Mat Min Mat Min Zio Pro Fac Gar Fac Low Low Fac Fac Ext Cet Arc Res Tes Res Acc Turns Passed 15372 | 74 627 992 761 421 1131 543 1636 1011 258 1169 20 419 1395 1451 312 349 608 623 584 988 Spaces Moved 8440 | 50 279 480 381 339 925 330 782 680 189 434 40 654 694 718 161 154 254 304 193 399 Core 140 | 8 . . . . . . . . . 41 40 51 . . . . . . . . Treads 3627 | . . . . . . . 642 61 . 191 . . 550 718 161 154 254 304 193 399 Legs 3957 | 42 279 480 381 339 925 330 140 619 189 202 . . 31 . . . . . . . Wheels . | . . . . . . . . . . . . . . . . . . . . . Hover . | . . . . . . . . . . . . . . . . . . . . . Flight 716 | . . . . . . . . . . . . 603 113 . . . . . . . Fastest Speed 37 | 50 120 200 120 120 120 120 120 120 120 50 50 37 39 166 160 160 160 160 160 158 Average Speed 143 | 119 195 200 132 120 120 123 152 127 120 226 50 39 149 166 164 160 160 160 161 158 Slowest Speed 650 | 150 200 200 200 120 120 200 200 260 120 650 50 205 170 170 166 160 160 160 260 161 Overloaded Moves . | . . . . . . . . . . . . . . . . . . . . . Propulsion Burnouts . | . . . . . . . . . . . . . . . . . . . . . Robots Hopped 1 | . . . . . . . . . . . . 1 . . . . . . . . Cave-ins Triggered . | . . . . . . . . . . . . . . . . . . . . . Exploration Rate (%) 44 | 4 48 95 39 89 82 46 25 67 7 66 6 21 15 84 58 87 10 51 12 20 Regions Visited 20 Branch Regions 10 Pre-discovered Areas 2 | . . 1 . . 1 . . . . . . . . . . . . . . . Known Exits Taken 3 | . . . . . . . 1 . . . . . 1 . . . 1 . . . Unknown Exits Taken 16 | 1 1 1 1 1 1 1 . . 1 1 1 1 . 1 1 1 . 1 1 . Scrap Searched 16 | . . 1 . 1 5 2 . . . 7 . . . . . . . . . . Spaces Dug 146 | . . . . . . . 45 32 2 1 . 2 14 5 . 1 16 9 8 11 Terrain Destroyed 665 | . 25 20 55 . . 63 94 155 2 35 . 43 40 5 . 3 43 11 41 30 Melee 23 | . . . . . . . 2 . 2 . . 2 9 1 . . 1 1 4 1 Projectile 105 | . . . 1 . . . 10 1 . 4 . . 12 4 . 3 20 10 11 29 AOE 537 | . 25 20 54 . . 63 82 154 . 31 . 41 19 . . . 22 . 26 . Terrain Rammed . | . . . . . . . . . . . . . . . . . . . . . Walls Destroyed . | . . . . . . . . . . . . . . . . . . . . . Machines Disabled . | . . . . . . . . . . . . . . . . . . . . . Actions | -11 -10 -10 -9 -9 -7 -6 -6 -6 -6 -6 -6 -5 -4 -4 -4 -4 -3 -3 -2 -1 --------- Run | Scr Mat Min Mat Min Zio Pro Fac Gar Fac Low Low Fac Fac Ext Cet Arc Res Tes Res Acc Total 10740 | 61 328 499 544 343 952 437 1122 782 211 530 39 752 980 933 210 222 386 412 364 633 Wait 1011 | . 17 6 51 . . 57 209 24 7 3 . 40 150 102 29 38 46 65 75 92 Move 8417 | 49 278 479 380 338 924 329 781 679 188 433 39 651 693 717 160 153 253 303 192 398 Hop 1 | . . . . . . . . . . . . 1 . . . . . . . . Pick Up 124 | 6 9 1 11 . 12 3 11 1 . 6 . 1 19 11 4 . 8 2 9 10 Fast Attach 120 | 6 3 . 5 . 1 3 16 9 2 18 . 15 17 1 6 4 4 2 5 3 Attach 53 | . . . 3 . 2 3 4 4 . 9 . 1 4 3 . . 3 2 4 11 Detach 30 | . 1 . 1 . 1 . 3 3 1 1 . 1 8 1 . 1 1 2 2 3 Swap 136 | . 1 3 17 . . 6 13 4 2 4 . 2 14 14 1 1 14 9 16 15 Drop 133 | . 3 2 22 . 12 2 18 2 4 1 . . 15 13 10 4 9 3 4 9 Fire 498 | . 16 8 54 5 . 22 46 40 . 35 . 11 37 27 . 19 43 14 53 68 Melee 166 | . . . . . . . 21 5 7 20 . 28 18 39 . 2 3 6 4 13 Ram . | . . . . . . . . . . . . . . . . . . . . . Kick . | . . . . . . . . . . . . . . . . . . . . . Crush 5 | . . . . . . . . . . . . . . 1 . . . . . 4 Escape Stasis 9 | . . . . . . . . 9 . . . . . . . . . . . . Rewire 33 | . . . . . . 12 . 2 . . . 1 5 . . . 2 4 . 7 Trap 4 | . . . . . . . . . . . . . . 4 . . . . . . Miscellaneous . | . . . . . . . . . . . . . . . . . . . . . Route ------- -11/Scrapyard -10/Materials (discovered 2 exits: *Mat / *Min) -10/Mines (discovered 2 exits: *Mat x2) -9/Materials -9/Mines (discovered 3 exits: [*Mat] / [*Exi] / *Zio) -7/Zion -6/Proximity Caves -6/Factory (discovered 4 exits: *Fac x2 / [*Low] / Gar) -6/Garrison (discovered 3 exits: *Fac x3) -6/Factory -6/Lower Caves -6/Lower Caves -5/Factory -4/Factory (discovered 5 exits: *Res / *Upp x2 / *Ext x2) -4/Extension (discovered 2 exits: *Res / *Cet) -4/Cetus (discovered 2 exits: *Res / [*Arc]) -4/Archives (discovered 3 exits: *Res / [*Hub x2]) -3/Research (discovered 3 exits: Arm / *Tes x2) -3/Testing -2/Research -1/Access To Epsilon Eridani History --------- Turn | Location | Event 13 | -11/Scrapyard | Discovered new exit (range 16) 75 | -11/Scrapyard | Entered Materials 310 | -10/Materials | Build established: Mutant 318 | -10/Materials | Discovered new exit (range 10) 465 | -10/Materials | Discovered new exit (range 16) 612 | -10/Materials | Core integrity fell below 50% 702 | -10/Materials | Entered Mines 1080 | -10/Mines | Discovered new exit (range 6) 1100 | -10/Mines | Assisted by bots powering up and referring to "LRC-V3" 1470 | -10/Mines | Received a Rocket Launcher from a helpful Derelict 1553 | -10/Mines | Discovered new exit (range 10) 1555 | -10/Mines | Learned location of Zion (-7) 1694 | -10/Mines | Entered Materials 1694 | -9/Materials | Accompanied by 3 allies 1694 | -9/Materials | Evolved 2 slots: Propulsion x1, Utility x1 2248 | -9/Materials | Discovered new exit (range 12) 2455 | -9/Materials | Entered Mines 2525 | -9/Mines | Deemed a non-threat by the Exiles lab entrance 2526 | -9/Mines | Discovered new exit (range 5) 2631 | -9/Mines | Discovered new exit (range 9) 2857 | -9/Mines | A Derelict revealed a hidden shortcut to a safe place 2876 | -9/Mines | Entered Zion 2876 | -7/Zion | Accompanied by 1 ally 2926 | -7/Zion | Led the pair of lost Derelicts to a safe place 2938 | -7/Zion | Discovered new exit (range 15) 3059 | -7/Zion | System corruption cleaned by Quarantine Array 3232 | -7/Zion | Received a visual enhancement algorithm 3380 | -7/Zion | Learned location of Data Miner (-6) 3517 | -7/Zion | Learned Factory scanalyzer intel 3687 | -7/Zion | Learned Factory trap positions 3831 | -7/Zion | Found Relay Coupler [Programmer] 3836 | -7/Zion | Found Relay Coupler [Programmer] 3842 | -7/Zion | Found Relay Coupler [Programmer] 3849 | -7/Zion | Found Relay Coupler [Programmer] 3851 | -7/Zion | Found Relay Coupler [Programmer] 4007 | -7/Zion | Entered Proximity Caves 4021 | -6/Proximity Caves | Attracted the attention of an 0b10 outpost 4439 | -6/Proximity Caves | Received a Behemoth hack from an annoying Tinkerer 4468 | -6/Proximity Caves | Attracted the attention of an 0b10 checkpoint 4531 | -6/Proximity Caves | Discovered new exit (range 3) 4550 | -6/Proximity Caves | Entered Factory 4550 | -6/Factory | Accompanied by 1 ally 4550 | -6/Factory | Evolved 6 slots: Propulsion x1, Utility x4, Weapon x1 4551 | -6/Factory | Loaded intel: 105 trap records 4552 | -6/Factory | Loaded intel: 4 scanalyzer locations 4715 | -6/Factory | Fabricated Com. HERF Cannon (x1) 4876 | -6/Factory | Discovered new exit (range 8) 5101 | -6/Factory | Discovered new exit (range 7) 5465 | -6/Factory | Discovered new exit (range 16) 6179 | -6/Factory | Identified exit to Garrison 6186 | -6/Factory | Entered Garrison 6336 | -6/Garrison | Lost 7 parts (3n3u1w) 6338 | -6/Garrison | Destroyed 10 combat bots 6416 | -6/Garrison | Discovered new exit (range 12) 6477 | -6/Garrison | Triggered checkpoint 6532 | -6/Garrison | Discovered new exit (range 14) 6592 | -6/Garrison | Triggered checkpoint 6612 | -6/Garrison | Build established: Scavenger-Mutant 6649 | -6/Garrison | Discovered new exit (range 21) 6681 | -6/Garrison | Installed Relay Interface Framework 6715 | -6/Garrison | Triggered checkpoint 6774 | -6/Garrison | Garrison Relay disabled 6936 | -6/Garrison | Triggered checkpoint 6970 | -6/Garrison | Garrison Relay disabled 6996 | -6/Garrison | Build established: Bothacker-Mutant 7047 | -6/Garrison | Triggered checkpoint 7197 | -6/Garrison | Entered Factory 7197 | -6/Factory | Accompanied by 1 ally 7304 | -6/Factory | Discovered new exit (range 12) 7455 | -6/Factory | Entered Lower Caves 7624 | -6/Lower Caves | Attacked by a faux Warlord 7750 | -6/Lower Caves | Lost 9 parts (5n3u1w) 7983 | -6/Lower Caves | Core integrity fell below 50% 8058 | -6/Lower Caves | Lost 4 parts (1p2u1w) 8340 | -6/Lower Caves | Lost 3 parts (1p1n1w) 8440 | -6/Lower Caves | Core integrity fell below 20% 8474 | -6/Lower Caves | Lost 8 parts (3n2u3w) 8497 | -6/Lower Caves | Discovered new exit (range 15) 8609 | -6/Lower Caves | Released all parts (9) 8624 | -6/Lower Caves | Entered another Lower Caves area 8630 | -6/Lower Caves | Discovered new exit (range 7) 8644 | -6/Lower Caves | Entered Factory 8644 | -5/Factory | Evolved 2 slots: Power x1, Propulsion x1 9055 | -5/Factory | Discovered new exit (range 5) 9063 | -5/Factory | Entered another Factory area 9063 | -4/Factory | Evolved 2 slots: Utility x1, Weapon x1 9170 | -4/Factory | Discovered new exit (range 14) 9710 | -4/Factory | Found Prototype Processor 9710 | -4/Factory | Identified Exp. Targeting Computer 9733 | -4/Factory | Build established: Scavenger-Mutant 9740 | -4/Factory | P-70 Sage assimilated allied Technician 7a 9804 | -4/Factory | Discovered new exit (range 11) 10006 | -4/Factory | Identified exit to Upper Caves 10006 | -4/Factory | Identified exit to Extension 10196 | -4/Factory | Build established: Bothacker-Mutant 10458 | -4/Factory | Entered Extension 10458 | -4/Extension | Accompanied by 1 ally 10523 | -4/Extension | Rescued A7 10569 | -4/Extension | Rescued a captive Derelict 10570 | -4/Extension | Rescued a captive Derelict 10720 | -4/Extension | Rescued a captive Derelict 10721 | -4/Extension | Rescued a captive Derelict 11258 | -4/Extension | Spotted B-86 Titan 11266 | -4/Extension | Allies destroyed B-86 Titan 11274 | -4/Extension | Spotted B-86 Titan 11449 | -4/Extension | Rescued a captive Derelict 11450 | -4/Extension | Rescued a captive Derelict 11856 | -4/Extension | Discovered new exit (range 10) 11858 | -4/Extension | Build established: Commander-Mutant 11858 | -4/Extension | Discovered new exit (range 6) 11909 | -4/Extension | Entered Cetus 11909 | -4/Cetus | Accompanied by 18 allies (A7) 11914 | -4/Cetus | Acquired a Cetus Manufacturing Module code from A7 11928 | -4/Cetus | Spotted Cetus Guard 11929 | -4/Cetus | Spotted Cetus Guard 11929 | -4/Cetus | Spotted Cetus Guard 11933 | -4/Cetus | Allies destroyed Cetus Guard 11933 | -4/Cetus | Allies destroyed Cetus Guard 11940 | -4/Cetus | Spotted Cetus Guard 11942 | -4/Cetus | Allies destroyed Cetus Guard 11947 | -4/Cetus | Allies destroyed Cetus Guard 12008 | -4/Cetus | Started Cetus Manufacturing Module 12033 | -4/Cetus | Manufactured an Enhanced Grunt 12040 | -4/Cetus | Cetus Manufacturing Module disabled 12042 | -4/Cetus | Discovered new exit (range 15) 12096 | -4/Cetus | Spotted Cetus Guard 12098 | -4/Cetus | Spotted Cetus Guard 12098 | -4/Cetus | Spotted Cetus Guard 12100 | -4/Cetus | Spotted Cetus Guard 12110 | -4/Cetus | Allies destroyed Cetus Guard 12114 | -4/Cetus | Allies destroyed Cetus Guard 12117 | -4/Cetus | Allies destroyed Cetus Guard 12120 | -4/Cetus | Discovered new exit (range 16) 12127 | -4/Cetus | Allies destroyed Cetus Guard 12136 | -4/Cetus | Met Revision 17 12150 | -4/Cetus | System corruption reached 10% 12221 | -4/Cetus | Entered Archives 12221 | -4/Archives | Accompanied by 5 allies (A7) 12371 | -4/Archives | Discovered new exit (range 16) 12422 | -4/Archives | Discovered new exit (range 16) 12436 | -4/Archives | Build established: Scavenger-Tank 12481 | -4/Archives | Discovered new exit (range 16) 12554 | -4/Archives | Found Prototype Device 12554 | -4/Archives | Identified Exp. Thermal Shield 12570 | -4/Archives | Entered Research 12570 | -3/Research | Evolved 2 slots: Propulsion x1, Utility x1 12658 | -3/Research | Spotted B-86 Titan 12990 | -3/Research | Garrison activated, responded to threat 13025 | -3/Research | Identified exit to Armory 13025 | -3/Research | Identified exit to Testing 13097 | -3/Research | Build established: Scavenger-Mutant 13178 | -3/Research | Entered Testing 13178 | -3/Testing | Accompanied by 3 allies 13290 | -3/Testing | Spotted PL-IER8CVRRZ9 13772 | -3/Testing | Discovered new exit (range 6) 13801 | -3/Testing | Entered Research 13801 | -2/Research | Accompanied by 2 allies 13801 | -2/Research | Evolved 2 slots: Utility x2 14137 | -2/Research | Destroyed 8 combat bots 14249 | -2/Research | Found Quantum Capacitor 14370 | -2/Research | Discovered new exit (range 7) 14385 | -2/Research | Entered Access 14385 | -1/Access | Evolved 2 slots: Propulsion x2 15109 | -1/Access | Garrison activated, responded to threat 15316 | -1/Access | Lost 3 parts (1p2u) 15365 | -1/Access | Discovered new exit (range 3) 15373 | *** | Escaped! Last Messages --------------- >>purge_threat Purged threat record, alert level lowered. 15335_ K-01 Serf collects debris. 15335_ Jacked O-32 Director... >>locate_traps Extracting local trap data... No trap data on record. 15338_ U-05 Engineer lays Concrete. 15338_ Discarded Relay Coupler [NC]. 15341_ System corrupted: Heat flow error (+100). 15341_ U-05 Engineer builds a Wall. 15351_ U-05 Engineer lays Concrete. 15353_ Connecting with Terminal... >>Open Sealed Barrier opened. 15360_ ALERT: Rogue bot located, Programmers report to Access Zone 4X. 15363_ System corrupted: Nova Cannon failed to cycle. 15365_ Main Access Shell breached. 15365_ EXIT=FOUND Map ----- +----------------------------------------------------+ | ????????# "" # ##########???????????????????? | | ????????# # # #??????????????????## | | ????????# # # #?????????????????? ? | | ????????########+# # #????????????????? #? | | ??????????# # " #????????????????? #? | | ??????????# + """ #???????????????? #? | | """???????# ###### # """ #???????????????? #? | | """???????# # # # " #??????????????? #? | | ########### # # # #??????????????? #? | | # =# # # # #?????????????? #? | | # # # # ########+############### #? | | # " *# # + +? | | # """ # # ########################## #? | | # """ # # =#???????????????????#????? #? | | # " + # #????????????????????????? #? | | # # # #????????????????????????? #? | | # # ######????????????????????????? #? | | ########### #?????????????????????????????? #? | | ??????????# #?????###?????????????????????# #? | | ??????????# ####### ##########????????????# #? | | ??????????# """T""" "????????????# #? | | ??????????# """ """ ?????????????# #? | | ?????????## """"""?????????????## #? | | ?????????## " "????????????? #? | | ?????????## " "" "????????????? #? | | ?????????## @" "?????????????? +? | | ?????????## " "?????????????? #? | | ?????????## """"""??????????????# #? | | ?????????## ??????????????????# #? | | ??????????# ?????????????????# #? | | ??????????# ####### ######????????????????# #? | | ?????????## #?????###?????????????????????# #? | | ##########" ####?###?????????############## #? | | # # " # #?????????# # #? | | # ! # " #### ### ????# # #? | | # """ | #= ######### ????# " # ## | | # ""T""[=#! #%=%### # ????# """ = # ## | | # "" ""=[+!% *!*[! # ????# G + | | # *% %= =%[ " ????# """ # | | # !=" #"##!#" #?????# " # | | # " ########% ##?????# # | | ########### %# # ##?????# ####### | | ?????????## %+ [=#[*##?????# = #?????# | | ??????????# #% %![%#%[##?????# #?????# | | ??????????# # =%*=#%!##?????# ####### | | ??????????# # ![=% /!%##?????#################### | | ??????????# # !!!*#![##???????????????## | | ??????????# # =%==#%!##???????????????## | ! | | ??????????# # =!#=[##???????????????## | | ?########## # #|[##############???## " | +----------------------------------------------------+ Best States ------------- Heat Dissipation 90 Coolant Potential 65 Energy Generation 45 Energy Capacity 1075 Matter Stores 300 Matter Capacity 300 Sight Range 22 Terrain Scan Range 24 Terrain Scan Density 10 Armor Coverage 1350 Resistance: KI 30 Resistance: TH 30 Resistance: EM 15 Propulsion Shielding 90 Weapon Cycling 15 Evasion (%) 62 Targeting Accuracy 12 Armor Integrity Analysis 35 Recoil Reduction 8 Relay Coupler Types 150 Relay Coupler Value 3 Item Schematics ----------------- Beamcaster | -7/Zion | Free Battle Rifle | -7/Zion | Free Barrage Gun | -7/Zion | Free Hcp. Storage Unit | -4/Factory | Hacked Robot Schematics ------------------ None Fabricated ------------ Com. HERF Cannon | x1 | -6/Factory | Preloaded Alien Tech Used ----------------- None Achievements -------------- None Challenges ------------ None Game ------ Seed ArmorReflectiveTerminator Manual? 0 Play Time 05:31:38 Cumulative 330.7 hours Start 2021.03.16 @ 07:49:06 End 2021.03.19 @ 15:23:40 Sessions 3 Manual Loads 0 Difficulty Rogue Special Mode None Game No. 100 Rogue 100 Adventurer 0 Explorer 0 Win Type 0 Total 24 Types 19/0/1/2/0/1/0/1/0 Lore% 39 Gallery% 80 Achievement% 80 Wizard Run 0 Options --------- ASCII 0 Keyboard 0 Movement Numpad Keybinds 0 Fullscreen 2 Font 20/SmallcapsGlow Map View 66x50 Tactical HUD 1 Map Filters NONE Filters NONE Steam 1 RUN: 3beff002-20a1-432b-8cab-fa5c8fd77371